fUST/lending_fUST_20250817
["ID","MTS","AMOUNT","RATE_DAILY","PERIOD"]
[379658383,1755360653725,-460.0,0.00022191,3]
[379658384,1755360653742,-1194.82,0.00022191,3]
[379658385,1755360653850,-480.0,0.00022191,3]
[379658386,1755360653861,-480.0,0.00022191,3]
[379658387,1755360653871,-480.0,0.00022191,3]
[379658388,1755360653881,-480.0,0.00022191,3]
[379658389,1755360653890,-480.0,0.00022191,3]
[379658390,1755360653899,-480.0,0.00022191,3]
[379658391,1755360653909,-480.0,0.00022191,3]
[379658392,1755360653918,-480.0,0.00022191,3]
[379658393,1755360653928,-480.0,0.00022191,3]
[379658394,1755360653937,-480.0,0.00022191,3]
[379658395,1755360653947,-440.0,0.00022191,3]
[379658396,1755360653956,-460.0,0.00022191,3]
[379658397,1755360653966,-559.43,0.00022191,3]
[379658398,1755360653975,-480.0,0.00022191,3]
[379658399,1755360653984,-480.0,0.00022191,3]
[379658400,1755360653993,-1099.02,0.00022191,3]
[379658401,1755360654004,-359.45208057,0.00022191,3]
[379658402,1755360654013,-422.85466851,0.00022191,3]
[379658403,1755360654022,-340.0,0.00022191,3]
[379658404,1755360654032,-480.0,0.00022191,3]
[379658405,1755360654041,-441.16782274,0.00022191,3]
[379658406,1755360654050,-480.0,0.00022191,3]
[379658407,1755360654060,-467.87529036,0.00022191,3]
[379658408,1755360654070,-480.0,0.00022191,3]
[379658409,1755360654079,-480.0,0.00022191,3]
[379658410,1755360654089,-480.0,0.00022191,3]
[379658411,1755360654098,-480.0,0.00022191,3]
[379658412,1755360654107,-480.0,0.00022191,3]
[379658413,1755360654117,-480.0,0.00022191,3]
[379658414,1755360654126,-480.0,0.00022191,3]
[379658415,1755360654136,-460.0,0.00022191,3]
[379658416,1755360654145,-480.0,0.00022191,3]
[379658417,1755360654155,-1000.0,0.00022191,3]
[379658418,1755360654164,-480.0,0.00022191,3]
[379658419,1755360654174,-480.0,0.00022191,3]
[379658420,1755360654183,-480.0,0.00022191,3]
[379658421,1755360654192,-480.0,0.00022191,3]
[379658422,1755360654202,-535.84,0.00022191,3]
[379658423,1755360654211,-480.0,0.00022191,3]
[379658424,1755360654220,-480.0,0.00022191,3]
[379658425,1755360654229,-938.85,0.00022191,3]
[379658426,1755360654238,-480.0,0.00022191,3]
[379658427,1755360654248,-480.0,0.00022191,3]
[379658428,1755360654258,-480.0,0.00022191,3]
[379658429,1755360654267,-622.74,0.00022191,3]
[379658430,1755360654277,-480.0,0.00022191,3]
[379658431,1755360654286,-480.0,0.00022191,3]
[379658432,1755360654295,-480.0,0.00022191,3]
[379658433,1755360654305,-584.75,0.00022191,3]
[379658434,1755360654315,-420.0,0.00022191,3]
[379658435,1755360654325,-480.0,0.00022191,3]
[379658436,1755360654334,-460.0,0.00022191,3]
[379658437,1755360654343,-446.52583585,0.00022191,3]
[379658438,1755360654352,-480.0,0.00022191,3]
[379658439,1755360654362,-480.0,0.00022191,3]
[379658440,1755360654371,-1781.92,0.00022191,3]
[379658441,1755360654380,-480.0,0.00022191,3]
[379658442,1755360654389,-480.0,0.00022191,3]
[379658443,1755360654398,-480.0,0.00022191,3]
[379658444,1755360654408,-480.0,0.00022191,3]
[379658445,1755360654417,-480.0,0.00022191,3]
[379658446,1755360654426,-480.0,0.00022191,3]
[379658447,1755360654436,-565.89,0.00022191,3]
[379658448,1755360654445,-480.0,0.00022191,3]
[379658449,1755360654455,-480.0,0.00022191,3]
[379658450,1755360654464,-480.0,0.00022191,3]
[379658451,1755360654474,-480.0,0.00022191,3]
[379658452,1755360654488,-182.03440314,0.00022191,3]
[379658453,1755360654501,-480.0,0.00022191,3]
[379658454,1755360654511,-480.0,0.00022191,3]
[379658455,1755360654521,-460.0,0.00022191,3]
[379658456,1755360654532,-480.0,0.00022191,3]
[379658457,1755360654542,-480.0,0.00022191,3]
[379658458,1755360654553,-480.0,0.00022191,3]
[379658459,1755360654576,-480.0,0.00022191,3]
[379658460,1755360654588,-460.0,0.00022191,3]
[379658461,1755360654634,-480.0,0.00022191,3]
[379658462,1755360654646,-480.0,0.00022191,3]
[379658463,1755360654656,-480.0,0.00022191,3]
[379658464,1755360654665,-480.0,0.00022191,3]
[379658465,1755360654675,-699.7,0.00022191,3]
[379658466,1755360654684,-480.0,0.00022191,3]
[379658467,1755360654693,-480.0,0.00022191,3]
[379658468,1755360654702,-480.0,0.00022191,3]
[379658469,1755360654712,-4133.43,0.00022191,3]
[379658470,1755360654721,-460.0,0.00022191,3]
[379658471,1755360654734,-480.0,0.00022191,3]
[379658472,1755360654743,-480.0,0.00022191,3]
[379658473,1755360654754,-610.32,0.00022191,3]
[379658474,1755360654763,-1709.94,0.00022191,3]
[379658475,1755360654776,-402.90149611,0.00022191,3]
[379658476,1755360654786,-806.65,0.00022191,3]
[379658477,1755360654796,-480.0,0.00022191,3]
[379658478,1755360654806,-480.0,0.00022191,3]
[379658479,1755360654820,-893.52,0.00022191,3]
[379658480,1755360654830,-480.0,0.00022191,3]
[379658481,1755360654840,-480.0,0.00022191,3]
[379658482,1755360654849,-986.12,0.00022191,3]
[379658483,1755360654859,-2711.25,0.00022191,3]
[379658484,1755360654869,-480.0,0.00022191,3]
[379658485,1755360654879,-480.0,0.00022191,3]
[379658486,1755360654888,-480.0,0.00022191,3]
[379658487,1755360654898,-480.0,0.00022191,3]
[379658488,1755360654908,-1412.9,0.00022191,3]
[379658489,1755360654919,-480.0,0.00022191,3]
[379658490,1755360654929,-680.95,0.00022191,3]
[379658491,1755360654938,-628.35510715,0.00022191,3]
[379658492,1755360654948,-480.0,0.00022191,3]
[379658493,1755360654957,-480.0,0.00022191,3]
[379658494,1755360654967,-480.0,0.00022191,3]
[379658495,1755360654977,-460.0,0.00022191,3]
[379658496,1755360654986,-480.0,0.00022191,3]
[379658497,1755360654997,-480.0,0.00022191,3]
[379658498,1755360655009,-480.0,0.00022191,3]
[379658499,1755360655019,-393.50303492,0.00022191,3]
[379658500,1755360655029,-480.0,0.00022191,3]
[379658501,1755360655039,-480.0,0.00022191,3]
[379658502,1755360655049,-480.0,0.00022191,3]
[379658503,1755360655059,-480.0,0.00022191,3]
[379658504,1755360655069,-480.0,0.00022191,3]
[379658505,1755360655079,-480.0,0.00022191,3]
[379658506,1755360655088,-480.0,0.00022191,3]
[379658507,1755360655097,-480.0,0.00022191,3]
[379658508,1755360655107,-397.65643213,0.00022191,3]
[379658509,1755360655116,-480.0,0.00022191,3]
[379658510,1755360655126,-480.0,0.00022191,3]
[379658511,1755360655135,-707.03,0.00022191,3]
[379658512,1755360655145,-480.0,0.00022191,3]
[379658513,1755360655156,-480.0,0.00022191,3]
[379658514,1755360655166,-14971.59,0.00022191,3]
[379658515,1755360655178,-480.0,0.00022191,3]
[379658516,1755360655187,-480.0,0.00022191,3]
[379658517,1755360655197,-480.0,0.00022191,3]
[379658518,1755360655206,-440.0,0.00022191,3]
[379658519,1755360655216,-480.0,0.00022191,3]
[379658520,1755360655226,-480.0,0.00022191,3]
[379658521,1755360655242,-480.0,0.00022191,3]
[379658522,1755360655252,-480.0,0.00022191,3]
[379658523,1755360655262,-480.0,0.00022191,3]
[379658524,1755360655271,-480.0,0.00022191,3]
[379658525,1755360655280,-1771.4,0.00022191,3]
[379658526,1755360655290,-480.0,0.00022191,3]
[379658527,1755360655299,-861.0,0.00022191,3]
[379658528,1755360655308,-480.0,0.00022191,3]
[379658529,1755360655318,-480.0,0.00022191,3]
[379658530,1755360655328,-946.49,0.00022191,3]
[379658531,1755360655337,-491.62,0.00022191,3]
[379658532,1755360655347,-577.52,0.00022191,3]
[379658533,1755360655357,-480.0,0.00022191,3]
[379658534,1755360655366,-480.0,0.00022191,3]
[379658535,1755360655375,-420.0,0.00022191,3]
[379658536,1755360655384,-480.0,0.00022191,3]
[379658537,1755360655394,-460.0,0.00022191,3]
[379658538,1755360655403,-465.36534231,0.00022191,3]
[379658539,1755360655414,-480.0,0.00022191,3]
[379658540,1755360655423,-480.0,0.00022191,3]
[379658541,1755360655433,-480.0,0.00022191,3]
[379658542,1755360655442,-480.0,0.00022191,3]
[379658543,1755360655451,-480.0,0.00022191,3]
[379658544,1755360655461,-480.0,0.00022191,3]
[379658545,1755360655470,-480.0,0.00022191,3]
[379658546,1755360655480,-480.0,0.00022191,3]
[379658547,1755360655490,-480.0,0.00022191,3]
[379658548,1755360655499,-480.0,0.00022191,3]
[379658549,1755360655510,-480.0,0.00022191,3]
[379658550,1755360655520,-778.86,0.00022191,3]
[379658551,1755360655529,-494.04,0.00022191,3]
[379658552,1755360655539,-979.57,0.00022191,3]
[379658553,1755360655548,-480.0,0.00022191,3]
[379658554,1755360655558,-672.44,0.00022191,3]
[379658555,1755360655568,-480.0,0.00022191,3]
[379658556,1755360655579,-466.62826441,0.00022191,3]
[379658557,1755360655684,-710.91,0.00022191,3]
[379658558,1755360655695,-814.59,0.00022191,2]
[379658559,1755360655705,-480.0,0.00022191,3]
[379658560,1755360655714,-460.0,0.00022191,3]
[379658561,1755360655723,-1335.46,0.00022191,3]
[379658562,1755360655738,-480.0,0.00022191,3]
[379658563,1755360655747,-480.0,0.00022191,3]
[379658564,1755360655758,-480.0,0.00022191,3]
[379658565,1755360655768,-997.79,0.00022191,3]
[379658566,1755360655778,-480.0,0.00022191,3]
[379658567,1755360655787,-480.0,0.00022191,3]
[379658568,1755360655796,-627.09,0.00022191,3]
[379658569,1755360655806,-440.0,0.00022191,3]
[379658570,1755360655815,-1622.42,0.00022191,3]
[379658571,1755360655826,-460.0,0.00022191,3]
[379658572,1755360655835,-480.0,0.00022191,3]
[379658573,1755360655845,-476.11514471,0.00022191,3]
[379658574,1755360655854,-460.0,0.00022191,3]
[379658575,1755360655863,-632.82,0.00022191,3]
[379658576,1755360655872,-480.0,0.00022191,3]
[379658577,1755360655881,-999.91,0.00022191,3]
[379658578,1755360655891,-480.0,0.00022191,3]
[379658579,1755360655900,-1268.95,0.00022191,3]
[379658580,1755360655910,-200.0,0.00022191,3]
[379658581,1755360655920,-1948.02,0.00022191,3]
[379658582,1755360655930,-1177.71,0.00022191,3]
[379658583,1755360655940,-480.0,0.00022191,3]
[379658584,1755360655950,-480.0,0.00022191,3]
[379658585,1755360655960,-480.0,0.00022191,3]
[379658586,1755360655969,-3164.72,0.00022191,3]
[379658587,1755360655979,-480.0,0.00022191,3]
[379658588,1755360655989,-1476.38,0.00022191,3]
[379658589,1755360655999,-480.0,0.00022191,3]
[379658590,1755360656017,-480.0,0.00022191,3]
[379658591,1755360656028,-480.0,0.00022191,3]
[379658592,1755360656038,-480.0,0.00022191,3]
[379658593,1755360656048,-1038.95,0.00022191,3]
[379658594,1755360656058,-480.0,0.00022191,3]
[379658595,1755360656068,-480.0,0.00022191,3]
[379658596,1755360656078,-480.0,0.00022191,3]
[379658597,1755360656087,-447.98964466,0.00022191,3]
[379658598,1755360656720,-480.0,0.00021917,3]
[379658599,1755360656735,-339.66035534,0.00022191,3]
[379658600,1755360656749,-480.0,0.00022191,3]
[379658601,1755360656764,-2154.87,0.00022191,3]
[379658602,1755360656778,-480.0,0.00022191,3]
[379658603,1755360656791,-460.0,0.00022191,3]
[379658604,1755360656804,-480.0,0.00022191,3]
[379658605,1755360656818,-480.0,0.00022191,3]
[379658606,1755360656831,-1336.09131176,0.00022191,3]
[379658607,1755360656849,-257.30868824,0.00022191,3]
[379658608,1755360656862,-337.09161766,0.00022191,3]
[379658609,1755360656879,-142.90838234,0.00022191,3]
[379658610,1755360656892,-571.61287305,0.00022191,3]
[379658611,1755360656906,-1515.14,0.00022191,3]
[379658612,1755360656918,-480.0,0.00022191,3]
[379658613,1755360656929,-480.0,0.00022191,3]
[379658614,1755360656938,-480.0,0.00022191,3]
[379658615,1755360656947,-480.0,0.00022191,3]
[379658616,1755360656956,-424.10346704,0.00022191,3]
[379658617,1755360656966,-5179.7,0.00022191,3]
[379658618,1755360656975,-480.0,0.00022191,3]
[379658619,1755360656984,-480.0,0.00022191,3]
[379658620,1755360656993,-2037.89,0.00022191,3]
[379658621,1755360657003,-497.64,0.00022191,3]
[379658622,1755360657012,-480.0,0.00022191,3]
[379658623,1755360657021,-480.0,0.00022191,3]
[379658624,1755360657030,-1224.83,0.00022191,3]
[379658625,1755360657039,-853.35,0.00022191,3]
[379658626,1755360657048,-1000.0,0.00022191,3]
[379658627,1755360657058,-1358.35,0.00022191,3]
[379658628,1755360657067,-480.0,0.00022191,3]
[379658629,1755360657077,-989.3,0.00022191,3]
[379658630,1755360657086,-480.0,0.00022191,3]
[379658631,1755360657095,-1744.86,0.00022191,3]
[379658632,1755360657104,-480.0,0.00022191,3]
[379658633,1755360657113,-480.0,0.00022191,3]
[379658634,1755360657122,-480.0,0.00022191,3]
[379658635,1755360657131,-480.0,0.00022191,3]
[379658636,1755360657140,-480.0,0.00022191,3]
[379658637,1755360657149,-459.93303064,0.00022191,3]
[379658638,1755360658001,-407.58004368,0.00021817,2]
[379658639,1755360658011,-407.58004364,0.00021886,2]
[379658640,1755360658021,-480.0,0.00021917,3]
[379658641,1755360658030,-214.8626994,0.00021917,3]
[379658642,1755360658039,-480.0,0.00021917,3]
[379658643,1755360658048,-919.76696936,0.00022191,3]
[379658644,1755360658058,-1889.83,0.00022191,3]
[379658645,1755360658067,-400.0,0.00022191,3]
[379658646,1755360658076,-1402.87,0.00022191,3]
[379658647,1755360658085,-480.0,0.00022191,3]
[379658648,1755360658094,-480.0,0.00022191,3]
[379658649,1755360658103,-480.0,0.00022191,3]
[379658650,1755360658113,-1150.01,0.00022191,3]
[379658651,1755360658122,-480.0,0.00022191,3]
[379658652,1755360658132,-480.0,0.00022191,3]
[379658653,1755360658141,-638.93,0.00022191,3]
[379658654,1755360658151,-480.0,0.00022191,3]
[379658655,1755360658160,-480.0,0.00022191,3]
[379658656,1755360658170,-59.57024392,0.00022191,3]
[379658657,1755360658294,-302.0,0.00021954,2]
[379658658,1755360659168,251.23246902,0.000199,2]
[379658674,1755360724899,500.0,0.00019999,2]
[379658675,1755360728181,350.12199,0.00013699,2]
[379658676,1755360773785,150.0,0.0002,2]
[379658681,1755360841890,150.0,0.00019,2]
[379658684,1755360863219,6348.69,0.000201,2]
[379658732,1755361326074,878.689226,0.00019582,2]
[379658733,1755361326622,630.509565,0.00019796,2]
[379658734,1755361326864,399.708089,0.00020057,2]
[379658736,1755361476170,160.96898325,0.0002,2]
[379658749,1755361715387,318.38835106,0.0002,120]
[379658772,1755361750739,500.0,0.00019999,2]
[379658773,1755361779816,285.49869746,0.000201,2]
[379658775,1755361795007,5000.0,0.000201,2]
[379658776,1755361811129,5000.0,0.000201,2]
[379658777,1755361814134,4989.01,0.00027805,60]
[379658778,1755361826177,3025.63786455,0.00020089,2]
[379658779,1755361827295,1486.98892107,0.000201,2]
[379658787,1755361832860,-350.12199,0.00020187,2]
[379658788,1755361832871,-277.56475007,0.00020189,2]
[379658789,1755361832880,-585.89832394,0.00020289,2]
[379658790,1755361832890,-216.78983868,0.00020303,2]
[379658791,1755361832899,-199.91652,0.00020403,2]
[379658792,1755361832909,-251.23246902,0.00020408,2]
[379658793,1755361832918,-160.0,0.00020408,2]
[379658794,1755361832927,-292.94916197,0.00020549,2]
[379658795,1755361832936,-216.78983866,0.00020657,2]
[379658796,1755361832945,-251.23246902,0.00020916,2]
[379658797,1755361832954,-1200.0,0.00020998,2]
[379658798,1755361832963,-1367.95514521,0.00020999,2]
[379658799,1755361833018,-4829.45496805,0.00020999,2]
[379658800,1755361833030,-7774.4039,0.00020999,2]
[379658814,1755361838667,-361.56773111,0.00020788,2]
[379658816,1755361838676,-500.0,0.00020998,2]
[379658818,1755361838686,-500.0,0.00020998,2]
[379658820,1755361838696,-500.0,0.00020998,2]
[379658822,1755361838706,-500.0,0.00020998,2]
[379658824,1755361838716,-500.0,0.00020998,2]
[379658826,1755361838725,-555.92384366,0.00020998,2]
[379658828,1755361838735,-500.0,0.00020998,2]
[379658830,1755361838745,-500.0,0.00020998,2]
[379658832,1755361838754,-500.0,0.00020998,2]
[379658834,1755361838764,-588.12025113,0.00020998,2]
[379658836,1755361838773,-500.0,0.00020998,2]
[379658838,1755361838783,-188.16354887,0.00020998,2]
[379658840,1755361838792,-500.0,0.00020998,2]
[379658842,1755361838802,-500.0,0.00020998,2]
[379658844,1755361838812,-500.0,0.00020998,2]
[379658846,1755361838822,-500.0,0.00020998,2]
[379658848,1755361838831,-500.0,0.00020998,2]
[379658850,1755361838841,-500.0,0.00020998,2]
[379658852,1755361838850,-500.0,0.00020998,2]
[379658854,1755361838859,-500.0,0.00020998,2]
[379658856,1755361838869,-500.0,0.00020998,2]
[379658858,1755361838878,-500.0,0.00020998,2]
[379658860,1755361838887,-500.0,0.00020998,2]
[379658862,1755361838896,-550.0,0.00020998,2]
[379658864,1755361838906,-500.0,0.00020998,2]
[379658866,1755361838915,-500.0,0.00020998,2]
[379658868,1755361838924,-293.76573165,0.00020998,2]
[379658871,1755361838944,-206.23426835,0.00020998,2]
[379658873,1755361838953,-500.0,0.00020998,2]
[379658875,1755361838962,-500.0,0.00020998,2]
[379658877,1755361838971,-500.0,0.00020998,2]
[379658879,1755361838981,-500.0,0.00020998,2]
[379658882,1755361838991,-500.0,0.00020998,2]
[379658884,1755361839000,-500.0,0.00020998,2]
[379658886,1755361839011,-500.0,0.00020998,2]
[379658888,1755361839023,-611.08770449,0.00020998,2]
[379658890,1755361839033,-500.0,0.00020998,2]
[379658891,1755361839043,-250.0,0.00020998,2]
[379658892,1755361839052,-500.0,0.00020998,2]
[379658893,1755361839062,-500.0,0.00020998,2]
[379658894,1755361839071,-500.0,0.00020998,2]
[379658895,1755361839081,-500.0,0.00020998,2]
[379658896,1755361839091,-500.0,0.00020998,2]
[379658897,1755361839106,-315.70349329,0.00020998,2]
[379658898,1755361839116,-500.0,0.00020998,2]
[379658899,1755361839126,-500.0,0.00020998,2]
[379658900,1755361839137,-500.0,0.00020998,2]
[379658901,1755361839148,-500.0,0.00020998,2]
[379658902,1755361839158,-500.0,0.00020998,2]
[379658903,1755361839168,-500.0,0.00020998,2]
[379658904,1755361839178,-500.0,0.00020998,2]
[379658906,1755361839188,-500.0,0.00020998,2]
[379658907,1755361839197,-487.85453387,0.00020998,2]
[379658912,1755361840816,-12.14546613,0.00020998,2]
[379658913,1755361840826,-500.0,0.00020998,2]
[379658914,1755361840835,-500.0,0.00020998,2]
[379658915,1755361840845,-500.0,0.00020998,2]
[379658917,1755361840855,-500.0,0.00020998,2]
[379658918,1755361840865,-500.0,0.00020998,2]
[379658919,1755361840875,-84.75207776,0.00020998,2]
[379658921,1755361840886,-415.24792224,0.00020998,2]
[379658922,1755361840895,-500.0,0.00020998,2]
[379658923,1755361840905,-588.56059201,0.00020998,2]
[379658924,1755361840913,-500.0,0.00020998,2]
[379658925,1755361840923,-500.0,0.00020998,2]
[379658926,1755361840932,-500.0,0.00020998,2]
[379658927,1755361840942,-500.0,0.00020998,2]
[379658928,1755361840951,-500.0,0.00020998,2]
[379658929,1755361840960,-500.0,0.00020998,2]
[379658930,1755361840970,-21762.37505997,0.00020999,2]
[379658931,1755361842217,203.27094995,0.00020087,2]
[379658945,1755361843747,-2468.68823871,0.00020999,2]
[379658948,1755361843802,-2581.1943879,0.00020999,2]
[379658950,1755361843812,-300.0,0.00020999,2]
[379658952,1755361843821,-300.0,0.00020999,2]
[379658954,1755361843830,-300.0,0.00020999,2]
[379658955,1755361843838,-300.0,0.00020999,2]
[379658956,1755361843847,-184.0,0.00020999,2]
[379658957,1755361843856,-5000.0,0.00021,2]
[379658959,1755361843865,-361.0123473,0.00021,2]
[379658960,1755361843875,-160.7608968,0.00021,2]
[379658961,1755361843883,-216.78983866,0.0002101,2]
[379658962,1755361843894,-160.7608968,0.00021178,2]
[379658963,1755361843903,-200.0,0.000212,2]
[379658964,1755361843912,-160.7608968,0.000212,2]
[379658966,1755361843921,-528.38334358,0.00021223,2]
[379658968,1755361843930,-160.0,0.00021223,2]
[379658969,1755361843939,-417.15472785,0.00021223,2]
[379658970,1755361843948,-462.1417622,0.00021223,2]
[379658971,1755361843957,-160.0,0.00021223,2]
[379658972,1755361843965,-843.58077381,0.00021223,2]
[379658973,1755361843974,-160.0,0.00021223,2]
[379658974,1755361843983,-160.0,0.00021223,2]
[379658975,1755361843992,-160.0,0.00021223,2]
[379658976,1755361844001,-232.11368524,0.00021223,2]
[379658977,1755361844010,-160.0,0.00021223,2]
[379658978,1755361844020,-215.68093138,0.00021238,2]
[379658979,1755361844029,-492.61,0.00021242,2]
[379658980,1755361844038,-580.575816,0.00021278,2]
[379658981,1755361844047,-216.78983866,0.00021364,2]
[379658982,1755361844057,-251.23246902,0.00021424,2]
[379658983,1755361844066,-156.870479,0.00021469,10]
[379658984,1755361844075,-160.7608968,0.000215,2]
[379658985,1755361844085,-211.61268212,0.00021525,2]
[379658986,1755361844096,-156.870479,0.0002157,5]
[379658987,1755361844105,-216.78983866,0.00021717,2]
[379658988,1755361844115,-160.7608968,0.00021746,2]
[379658989,1755361844124,-160.7608968,0.00021746,2]
[379658990,1755361844135,-1652.61060142,0.00021814,2]
[379658991,1755361844145,-6111.99112898,0.00021817,3]
[379658992,1755361844155,-184.1480262,0.00021817,2]
[379658993,1755361844164,-500.0,0.00021891,2]
[379658994,1755361844176,-500.0,0.00021891,2]
[379658995,1755361844185,-500.0,0.00021891,2]
[379658996,1755361844195,-500.0,0.00021891,2]
[379658997,1755361844205,-500.0,0.00021891,2]
[379658998,1755361844215,-166.68823871,0.00021891,2]
[379658999,1755361844224,-10142.05215938,0.00021891,2]
[379659000,1755361844234,-151.0,0.00021891,2]
[379659001,1755361844244,-151.0,0.00021891,2]
[379659002,1755361844253,-151.0,0.00021891,2]
[379659003,1755361844263,-151.0,0.00021891,2]
[379659004,1755361844272,-151.0,0.00021891,2]
[379659005,1755361844281,-151.0,0.00021891,2]
[379659006,1755361844290,-151.0,0.00021891,2]
[379659007,1755361844299,-151.0,0.00021891,2]
[379659008,1755361844309,-151.128149,0.000219,2]
[379659009,1755361844319,-500.0,0.00021904,2]
[379659010,1755361844329,-151.128149,0.00021907,10]
[379659011,1755361844338,-554.59,0.00021907,3]
[379659012,1755361844348,-189.004,0.00021914,2]
[379659013,1755361844357,-312.96397594,0.00021916,2]
[379659014,1755361844367,-151.0,0.00021917,2]
[379659015,1755361844376,-151.0,0.00021917,2]
[379659016,1755361844386,-151.0,0.00021917,2]
[379659017,1755361844395,-649.608667,0.00021917,2]
[379659018,1755361844405,-649.608667,0.00021917,2]
[379659019,1755361844415,-649.608667,0.00021917,2]
[379659020,1755361844424,-649.608667,0.00021917,2]
[379659021,1755361844435,-649.608667,0.00021917,2]
[379659022,1755361844444,-649.608667,0.00021917,2]
[379659023,1755361844453,-649.608667,0.00021917,2]
[379659024,1755361844463,-649.608667,0.00021917,2]
[379659025,1755361844472,-649.608667,0.00021917,2]
[379659026,1755361844482,-649.608667,0.00021917,2]
[379659027,1755361844491,-649.608667,0.00021917,2]
[379659028,1755361844500,-649.608667,0.00021917,2]
[379659029,1755361844509,-649.608667,0.00021917,2]
[379659030,1755361844518,-649.608667,0.00021917,2]
[379659031,1755361844529,-649.608667,0.00021917,2]
[379659032,1755361844538,-649.608667,0.00021917,2]
[379659033,1755361844548,-649.608667,0.00021917,2]
[379659034,1755361844557,-649.608658,0.00021917,2]
[379659035,1755361844566,-307.39811996,0.00021917,3]
[379659036,1755361844575,-151.0,0.00021917,2]
[379659037,1755361844585,-151.0,0.00021917,2]
[379659038,1755361844594,-151.0,0.00021917,2]
[379659039,1755361844604,-151.0,0.00021917,2]
[379659040,1755361844614,-151.0,0.00021917,2]
[379659041,1755361844623,-151.0,0.00021917,2]
[379659042,1755361844633,-151.0,0.00021917,2]
[379659043,1755361844642,-151.0,0.00021917,2]
[379659044,1755361844652,-151.0,0.00021917,2]
[379659045,1755361844662,-151.0,0.00021917,2]
[379659046,1755361844671,-151.0,0.00021917,2]
[379659048,1755361844680,-274.084812,0.00021917,2]
[379659050,1755361844689,-174.18974329,0.00021917,3]
[379659054,1755361846895,-398.13498301,0.00020789,2]
[379659055,1755361846905,-1555.931171,0.000216,2]
[379659056,1755361846915,-305.81025671,0.00021917,3]
[379659057,1755361846925,-480.0,0.00021917,3]
[379659058,1755361846935,-440.0,0.00021917,3]
[379659059,1755361846945,-184.639728,0.00021917,2]
[379659060,1755361846955,-184.639728,0.00021917,2]
[379659061,1755361846965,-184.639728,0.00021917,2]
[379659062,1755361846974,-184.639728,0.00021917,2]
[379659063,1755361846984,-184.639728,0.00021917,2]
[379659064,1755361846994,-184.639728,0.00021917,2]
[379659065,1755361847003,-184.639728,0.00021917,2]
[379659066,1755361847013,-184.639728,0.00021917,2]
[379659067,1755361847022,-184.639728,0.00021917,2]
[379659068,1755361847032,-184.639728,0.00021917,2]
[379659069,1755361847041,-184.639728,0.00021917,2]
[379659070,1755361847051,-184.639728,0.00021917,2]
[379659071,1755361847060,-184.639728,0.00021917,2]
[379659072,1755361847070,-184.639728,0.00021917,2]
[379659073,1755361847080,-184.639728,0.00021917,2]
[379659074,1755361847090,-184.639728,0.00021917,2]
[379659075,1755361847099,-184.639728,0.00021917,2]
[379659076,1755361847112,-184.639728,0.00021917,2]
[379659077,1755361847122,-184.639728,0.00021917,2]
[379659078,1755361847131,-184.639736,0.00021917,2]